[Event "French-ch U16-U18 2024"]
[Site "Agen"]
[Date "2024.04.18"]
[Round "6.18"]
[White "Warnier, Yanis"]
[Black "Schippke, Manon"]
[Result "1-0"]
[ECO "B42"]
[WhiteElo "2116"]
[BlackElo "2239"]
[Annotator "TA"]
[PlyCount "47"]
[EventDate "2024.04.14"]
[EventType "swiss"]
[EventCountry "FRA"]
[SourceTitle "playchess.com"]
[Source "ChessBase"]
[SourceQuality "1"]
[TimeControl "5400+30"]

{[%evp 14,47,51,34,49,52,43,49,50,51,66,49,43,55,73,52,94,59,64,56,82,49,46,19,65,22,22,23,19,31,460,446,469,469,592,631]} 1. e4 {[%emt 0:00:04]} c5 {[%emt 0:00:04]} 2. Nf3 {[%emt 0:00:07]} e6 {[%emt 0:00:05]} 3. d4 {[%emt 0:00:04]} cxd4 {[%emt 0:00:04]} 4. Nxd4 {[%emt 0:00:05]} a6 {[%emt 0:00:03]} 5. Bd3 {[%emt 0:00:04]} Bc5 {[%emt 0:00:23]} 6. Nb3 {[%emt 0:00:08]} Ba7 {[%emt 0:00:04]} 7. O-O {[%emt 0:03:36]} Nc6 {[%emt 0:00:06]} 8. Qg4 {[%emt 0:00:51]} Qf6 {[%emt 0:00:16]} 9. Qg3 {[%emt 0:02:19]} h5 {[%emt 0:01:17][%cal Bh7h5,Bh5h4,Bh4h3][%mdl 32]} 10. Be3 {[%emt 0:15:05]} h4 {[%emt 0:05:48] White is slightly better.} 11. Qh3 {[%emt 0:00:26]} d6 {[%emt 0:09:45]} 12. Bxa7 {[%emt 0:02:04] [#] aiming for Bb6.} e5 {[%emt 0:04:52]} 13. Qe3 {[%emt 0:00:32]} Nxa7 {[%emt 0:00:03]} 14. Nc3 {[%emt 0:01:46]} Ne7 {[%emt 0:06:34]} 15. Na5 {[%emt 0:21:51]} h3 {[%emt 0:08:07] [#] And now ...hxg2 would win.} 16. g3 {[%emt 0:00:18] White is more active.} b5 {[%emt 0:13:57] Prevents Nc4} 17. b4 {[%emt 0:08:55]} O-O {[%emt 0:01:27]} 18. Rfd1 {[%emt 0:03:12]} Be6 {[%emt 0:13:47]} (18... Bg4 $11 {might be stronger.}) 19. Bf1 {[%emt 0:01:13]} Nac6 {[%emt 0:00:04]} 20. Nxc6 {[%emt 0:02:16]} Nxc6 {[%emt 0:00:02]} 21. Rxd6 {[%emt 0:00:34]} Nxb4 {[%emt 0:00:40][%mdl 8192]} (21... Nd4 $1 $14 22. Nd5 Qf3) 22. Nd5 $18 {[%emt 0:00:20] White is clearly winning.} Nxd5 {[%emt 0:01:33]} 23. exd5 {[%emt 0:00:10]} e4 {[%emt 0:02:14]} 24. Rd1 {[%emt 0:00:19] Weighted Error Value: White=0.12 (very precise) /Black=0.45.  Loses game:     	---       	Black=1      Mistake:       	---       	Black=1      Inaccurate:     	White=4     	Black=2      OK:         	White=6     	Black=5      Best:        	White=2     	---} 1-0

[Event "French-ch U16-U18 2024"]
[Site "Agen"]
[Date "2024.04.18"]
[Round "6.19"]
[White "Lesueur, Gabriel"]
[Black "De Carvalho Massabo, Raphael"]
[Result "1/2-1/2"]
[ECO "C64"]
[WhiteElo "2235"]
[BlackElo "2105"]
[Annotator "TA"]
[PlyCount "42"]
[EventDate "2024.04.14"]
[EventType "swiss"]
[EventCountry "FRA"]
[SourceTitle "playchess.com"]
[Source "ChessBase"]
[SourceQuality "1"]
[TimeControl "5400+30"]

{[%evp 10,42,87,43,43,35,47,5,45,16,16,10,22,17,24,7,8,1,15,11,33,16,16,21,30,18,32,-5,0,-7,-1,0,0,-6,-8]} 1. e4 {[%emt 0:00:10]} e5 {[%emt 0:00:06]} 2. Nf3 {[%emt 0:00:07]} Nc6 {[%emt 0:00:04]} 3. Bb5 {[%emt 0:00:33][%cal Bf1b5,Bb5a4,Ba4b3][%mdl 32]} a6 {[%emt 0:00:05]} 4. Ba4 {[%emt 0:00:06]} Bc5 {[%emt 0:00:05]} 5. O-O {[%emt 0:01:52]} Nge7 {[%emt 0:00:28][%cal Bg8e7,Be7g6,Bg6e5,Be5d7][%mdl 32]} 6. c3 {[%emt 0:04:08]} Ba7 {[%emt 0:00:31]} 7. d4 {[%emt 0:00:54]} Ng6 {[%emt 0:00:35]} 8. dxe5 {[%emt 0:10:09]} b5 {[%emt 0:13:17]} 9. Bb3 {[%emt 0:01:30] [#] aiming for Bg5.} O-O {[%emt 0:02:06]} 10. Qe2 {[%emt 0:17:19]} Ncxe5 {[%emt 0:08:09]} 11. Nxe5 {[%emt 0:01:41]} Nxe5 {[%emt 0:00:02]} 12. Be3 {[%emt 0:00:03]} Bxe3 {[%emt 0:15:57]} 13. Qxe3 {[%emt 0:00:19]} d6 {[%emt 0:00:15]} (13... a5 $5 {[%cal Ra5a4]}) 14. f4 {[%emt 0:09:37]} Nd7 {[%emt 0:05:39]} 15. Nd2 {[%emt 0:06:18]} Bb7 {[%emt 0:02:12]} 16. Rae1 {[%emt 0:03:26]} Qe7 {[%emt 0:05:03]} 17. Bc2 {[%emt 0:05:25]} Rae8 {[%emt 0:02:35]} 18. Qh3 {[%emt 0:01:08]} Qe6 {[%emt 0:01:25] The position is equal.} 19. Qxe6 {[%emt 0:20:40]} Rxe6 {[%emt 0:00:37]} 20. Re2 {[%emt 0:04:51]} Rfe8 {[%emt 0:04:06]} 21. Rfe1 {[%emt 0:00:06]} R6e7 {[%emt 0:03:02] Weighted Error Value: White=0.13 (very precise) /Black=0.07 (flawless) .  Inaccurate:     	White=3     	Black=1      OK:         	White=4     	Black=6} 1/2-1/2

[Event "French-ch U16-U18 2024"]
[Site "Agen"]
[Date "2024.04.18"]
[Round "6.20"]
[White "Mendoza, Mael"]
[Black "Ciarletta, Ulysse"]
[Result "1-0"]
[ECO "B31"]
[WhiteElo "2088"]
[BlackElo "2217"]
[Annotator "TA"]
[PlyCount "59"]
[EventDate "2024.04.14"]
[EventType "swiss"]
[EventCountry "FRA"]
[SourceTitle "playchess.com"]
[Source "ChessBase"]
[SourceQuality "1"]
[TimeControl "5400+30"]

{[%evp 16,59,31,9,12,10,24,0,20,16,21,11,64,20,91,53,48,41,163,133,115,123,142,143,177,183,170,157,160,167,305,306,1262,1243,29989,29990,29990,29991,29992,29993,29994,29995,29995,6026,29994,1695]} 1. e4 {[%emt 0:00:29]} c5 {[%emt 0:00:14]} 2. Nf3 {[%emt 0:00:14]} Nc6 {[%emt 0:00:15]} 3. Bb5 {[%emt 0:00:23]} g6 {[%emt 0:00:35]} 4. O-O {[%emt 0:00:29]} Bg7 {[%emt 0:00:07]} 5. Re1 {[%emt 0:00:08]} e5 {[%emt 0:01:23]} 6. b4 {[%emt 0:01:51]} cxb4 {[%emt 0:07:39]} 7. a3 {[%emt 0:00:53]} Nge7 {[%emt 0:05:53]} 8. axb4 {[%emt 0:01:43]} O-O {[%emt 0:02:54]} 9. Bb2 {[%emt 0:02:33]} Nd4 {[%emt 0:03:43]} 10. Nxd4 {[%emt 0:22:18]} exd4 {[%emt 0:01:04]} 11. c4 {[%emt 0:08:00]} d6 {[%emt 0:10:36] The position is equal.} 12. d3 {[%emt 0:03:28]} Be6 {[%emt 0:05:20]} 13. Ba4 {[%emt 0:09:24]} Qb6 {[%emt 0:08:26]} (13... a6 $11) 14. Qd2 {[%emt 0:01:53]} g5 {[%emt 0:06:10]} 15. Qxg5 {[%emt 0:10:59]} Qxb4 {[%emt 0:00:30]} 16. Qd2 {[%emt 0:03:17]} (16. Bxd4 $2 Qxe1#) 16... Qc5 {[%emt 0:03:39]} ({Black should play} 16... Nc6 $14) 17. Bd1 {[%emt 0:02:25]} Ng6 {[%emt 0:01:41]} 18. Na3 {[%emt 0:05:38]} f5 {[%emt 0:06:52]} 19. Nc2 {[%emt 0:00:33]} a5 {[%emt 0:02:12]} 20. exf5 {[%emt 0:01:54]} Bxf5 {[%emt 0:03:06]} 21. Bf3 {[%emt 0:00:18]} Kh8 {[%emt 0:02:09]} 22. Bd5 {[%emt 0:03:16] White is more active.} Qb6 {[%emt 0:07:13]} (22... a4 $142 23. g3 (23. Bxb7 Rab8 $16) 23... Bd7) 23. Rab1 $18 {[%emt 0:01:19][%cal Ba1b1,Bb1b7,Bb7e7][%mdl 32]} Qb3 $2 {[%emt 0:02:21] [#]} (23... Bc8 24. Bxd4 Qc7) 24. Bxd4 {[%emt 0:06:23]} Qxd3 {[%emt 0:02:43]} 25. Bxg7+ {[%emt 0:00:06]} Kxg7 {[%emt 0:00:38]} 26. Rxb7+ {[%emt 0:00:06]} Kh8 {[%emt 0:00:46]} 27. Qh6 {[%emt 0:00:36][%csl Gb7][%cal Rh6h7]} Ne7 {[%emt 0:00:12]} 28. Rbxe7 {[%emt 0:00:23][%csl Ge7][%cal Rh6g7]} Qc3 {[%emt 0:00:25]} 29. Bxa8 {[%emt 0:00:48]} (29. Rxh7+ $142 Bxh7 30. Re7 (30. Bxa8 Qg7 $18) 30... Qa1+ 31. Nxa1 Rf7 32. Rxf7 Kg8 33. Qxh7#) 29... Rg8 {[%emt 0:00:47]} 30. Qe3 {[%emt 0:01:07] Weighted Error Value: White=0.08 (flawless) /Black=0.82.  Mistake:       	---       	Black=5      Inaccurate:     	White=2     	Black=1      OK:         	White=7     	Black=1      Best:        	White=1     	Black=1} (30. Be4 $142 Qg7 31. Rxg7 Rxg7 32. Bxf5 Rxg2+ 33. Kxg2 Kg8 34. Re8+ Kf7 35. Qf8#) 1-0

[Event "French-ch U16-U18 2024"]
[Site "Agen"]
[Date "2024.04.19"]
[Round "7.1"]
[White "Fesigny, Oceane"]
[Black "Pereira-Davoine, Alana"]
[Result "0-1"]
[ECO "B58"]
[WhiteElo "1829"]
[BlackElo "1780"]
[Annotator "NA RC COMBH"]
[PlyCount "118"]
[EventDate "2024.04.14"]
[EventType "swiss"]
[EventCountry "FRA"]
[SourceTitle "playchess.com"]
[Source "ChessBase"]
[SourceQuality "1"]
[TimeControl "5400+30"]

1. e4 {[%emt 0:00:02]} c5 {[%emt 0:00:07]} 2. Nf3 {[%emt 0:00:08]} d6 {[%emt 0:00:04]} 3. d4 {[%emt 0:00:25]} cxd4 {[%emt 0:00:03]} 4. Nxd4 {[%emt 0:00:07]} Nf6 {[%emt 0:00:04]} 5. Nc3 {[%emt 0:00:15]} a6 {[%emt 0:00:04]} 6. Be2 {[%emt 0:00:50]} e5 {[%emt 0:00:09]} 7. Nf3 {[%emt 0:00:45]} h6 {[%emt 0:00:56]} 8. a4 {[%emt 0:05:30]} Be7 {[%emt 0:02:49]} 9. O-O {[%emt 0:02:02]} O-O {[%emt 0:01:07]} 10. h3 {[%emt 0:06:05]} Be6 {[%emt 0:03:01]} 11. Re1 {[%emt 0:08:47]} Nc6 {[%emt 0:04:06]} 12. Bf1 {[%emt 0:04:10]} Qc7 {[%emt 0:16:35]} 13. Nd5 {[%emt 0:17:42]} Bxd5 {[%emt 0:14:10]} 14. exd5 {[%emt 0:00:17]} Nb4 {[%emt 0:07:12]} 15. c4 {[%emt 0:01:13]} Nd7 {[%emt 0:05:25]} 16. a5 {[%emt 0:10:52]} b6 {[%emt 0:02:50]} 17. axb6 {[%emt 0:11:03]} Qxb6 {[%emt 0:02:33]} 18. Be3 {[%emt 0:01:04]} Nc5 {[%emt 0:01:02]} 19. Nd2 {[%emt 0:02:22]} Bg5 {[%emt 0:12:07]} 20. Bxc5 {[%emt 0:03:13]} dxc5 {[%emt 0:02:56]} 21. Nf3 {[%emt 0:02:12]} Bf6 {[%emt 0:00:27]} 22. Nxe5 {[%emt 0:01:59]} Qd6 {[%emt 0:00:58]} 23. f4 {[%emt 0:01:19]} Rfe8 {[%emt 0:01:00]} 24. Qd2 {[%emt 0:13:40]} Bxe5 {[%emt 0:05:09]} 25. fxe5 {[%emt 0:00:03]} Rxe5 {[%emt 0:00:40]} 26. Rxe5 {[%emt 0:00:44]} Qxe5 {[%emt 0:00:03]} 27. Re1 {[%emt 0:01:41]} Qf6 {[%emt 0:02:20]} 28. Re4 {[%emt 0:01:45]} Rb8 {[%emt 0:02:41]} 29. d6 {[%emt 0:03:07]} Rd8 {[%emt 0:01:52]} 30. d7 {[%emt 0:00:22]} Nc6 {[%emt 0:00:52]} 31. Re8+ {[%emt 0:01:13]} Kh7 {[%emt 0:00:09]} 32. Bd3+ {[%emt 0:00:35]} g6 {[%emt 0:00:07]} 33. Be4 {[%emt 0:00:21]} Nd4 {[%emt 0:02:11]} 34. Rxd8 {[%emt 0:00:59]} Qxd8 {[%emt 0:00:07]} 35. Qf2 {[%emt 0:00:33]} Qxd7 {[%emt 0:00:35]} 36. Bd5 {[%emt 0:00:27]} Qf5 {[%emt 0:04:34]} 37. Qxf5 {[%emt 0:00:32]} Nxf5 {[%emt 0:00:10]} 38. Bxf7 {[%emt 0:00:11]} Kg7 {[%emt 0:00:07]} 39. Bd5 {[%emt 0:00:43]} Kf6 {[%emt 0:00:12]} 40. Kf2 {[%emt 0:00:23]} Ke5 {[%emt 0:00:26]} 41. g4 {[%emt 0:00:33]} Ne7 {[%emt 0:01:59]} 42. Bb7 {[%emt 0:00:32]} a5 {[%emt 0:00:06]} 43. Ke3 {[%emt 0:00:12]} g5 {[%emt 0:00:14]} 44. Ba8 {[%emt 0:00:45]} Ng6 {[%emt 0:01:05]} 45. Bg2 {[%emt 0:00:40]} Nf4 {[%emt 0:00:37]} 46. Bf1 {[%emt 0:00:11]} a4 {[%emt 0:00:18]} 47. Kf3 {[%emt 0:00:49]} Kd4 {[%emt 0:00:31]} 48. h4 {[%emt 0:00:22]} Ng6 {[%emt 0:00:25]} 49. hxg5 {[%emt 0:00:21]} hxg5 {[%emt 0:00:04]} 50. Be2 {[%emt 0:00:47]} Ne5+ {[%emt 0:00:21]} 51. Kf2 {[%emt 0:00:18]} Nxc4 {[%emt 0:00:07]} 52. Bxc4 {[%emt 0:00:42]} Kxc4 {[%emt 0:00:05]} 53. Ke3 {[%emt 0:00:02]} Kb3 {[%emt 0:00:08]} 54. Ke4 {[%emt 0:00:12]} Kxb2 {[%emt 0:00:05]} 55. Kf5 {[%emt 0:00:34]} a3 {[%emt 0:00:29]} 56. Kxg5 {[%emt 0:00:04]} a2 {[%emt 0:00:25]} 57. Kf5 {[%emt 0:00:06]} a1=Q {[%emt 0:10:01]} 58. g5 {[%emt 0:00:01]} Qa8 {[%emt 0:00:00]} 59. g6 {[%emt 0:00:10]} Qg8 {[%emt 0:00:00]} 0-1

[Event "French-ch U16-U18 2024"]
[Site "Agen"]
[Date "2024.04.19"]
[Round "7.2"]
[White "Paralieu, Emma"]
[Black "Tran, Ky Lan"]
[Result "0-1"]
[ECO "B22"]
[WhiteElo "1775"]
[BlackElo "1724"]
[Annotator "NA RC COMBH"]
[PlyCount "52"]
[EventDate "2024.04.14"]
[EventType "swiss"]
[EventCountry "FRA"]
[SourceTitle "playchess.com"]
[Source "ChessBase"]
[SourceQuality "1"]
[TimeControl "5400+30"]

1. e4 {[%emt 0:00:03]} c5 {[%emt 0:00:09]} 2. c3 {[%emt 0:00:05]} Nf6 {[%emt 0:00:20]} 3. e5 {[%emt 0:00:07]} Nd5 {[%emt 0:00:19]} 4. Nf3 {[%emt 0:00:07]} e6 {[%emt 0:00:39]} 5. d4 {[%emt 0:00:40]} cxd4 {[%emt 0:00:08]} 6. cxd4 {[%emt 0:00:07]} d6 {[%emt 0:00:09]} 7. Bc4 {[%emt 0:00:17]} Be7 {[%emt 0:00:16]} 8. O-O {[%emt 0:00:09]} O-O {[%emt 0:00:10]} 9. Qe2 {[%emt 0:00:35]} b6 {[%emt 0:00:42]} 10. Qe4 {[%emt 0:03:32]} Ba6 {[%emt 0:02:15]} 11. Bxd5 {[%emt 0:16:22]} exd5 {[%emt 0:00:09]} 12. Qxd5 {[%emt 0:00:07]} Nc6 {[%emt 0:00:33]} 13. Rd1 {[%emt 0:04:18]} Be2 {[%emt 0:01:02]} 14. Rd2 {[%emt 0:03:09]} Bxf3 {[%emt 0:00:10]} 15. Qxf3 {[%emt 0:08:08]} Bg5 {[%emt 0:02:33]} 16. Rd1 {[%emt 0:02:24]} Bxc1 {[%emt 0:01:11]} 17. Rxc1 {[%emt 0:03:21]} Nxd4 {[%emt 0:01:05]} 18. Qe4 {[%emt 0:00:50]} dxe5 {[%emt 0:01:19]} 19. Nc3 {[%emt 0:07:10]} Re8 {[%emt 0:11:22]} 20. Rd1 {[%emt 0:02:31]} f5 {[%emt 0:13:06]} 21. Qd3 {[%emt 0:06:22]} Qe7 {[%emt 0:06:24]} 22. Rd2 {[%emt 0:22:35]} Rad8 {[%emt 0:07:36]} 23. Rad1 {[%emt 0:01:34]} Kh8 {[%emt 0:04:06]} 24. Nb5 {[%emt 0:02:48]} Qg5 {[%emt 0:17:12]} 25. Nc7 {[%emt 0:04:14]} e4 {[%emt 0:05:36]} 26. Qc3 {[%emt 0:10:43]} Ne2+ {[%emt 0:02:45]} 0-1

[Event "French-ch U16-U18 2024"]
[Site "Agen"]
[Date "2024.04.19"]
[Round "7.3"]
[White "Delmouly, Manon"]
[Black "Bat, Anu"]
[Result "0-1"]
[ECO "B40"]
[WhiteElo "1800"]
[BlackElo "1887"]
[Annotator "NA RC COMBH"]
[PlyCount "62"]
[EventDate "2024.04.14"]
[EventType "swiss"]
[EventCountry "FRA"]
[SourceTitle "playchess.com"]
[Source "ChessBase"]
[SourceQuality "1"]
[TimeControl "5400+30"]

1. e4 {[%emt 0:00:03]} c5 {[%emt 0:00:07]} 2. Nf3 {[%emt 0:00:13]} e6 {[%emt 0:00:08]} 3. d3 {[%emt 0:00:08]} Nc6 {[%emt 0:01:48]} 4. g3 {[%emt 0:00:36]} d5 {[%emt 0:00:27]} 5. Nbd2 {[%emt 0:00:18]} Be7 {[%emt 0:01:39]} 6. Bg2 {[%emt 0:00:23]} Bf6 {[%emt 0:05:47]} 7. O-O {[%emt 0:01:29]} d4 {[%emt 0:06:45]} 8. Re1 {[%emt 0:03:28]} e5 {[%emt 0:00:16]} 9. Nb3 {[%emt 0:15:19]} b6 {[%emt 0:01:24]} 10. Nfd2 {[%emt 0:04:08]} h5 {[%emt 0:05:41]} 11. Nf1 {[%emt 0:03:47]} h4 {[%emt 0:04:52]} 12. f4 {[%emt 0:03:15]} hxg3 {[%emt 0:01:38]} 13. Nxg3 {[%emt 0:01:03]} g6 {[%emt 0:15:09]} 14. Rf1 {[%emt 0:09:16]} Bg7 {[%emt 0:01:38]} 15. Rf2 {[%emt 0:07:08]} Qh4 {[%emt 0:04:04]} 16. Bh1 {[%emt 0:01:18]} Nf6 {[%emt 0:01:44]} 17. Nf1 {[%emt 0:10:20]} Bh3 {[%emt 0:02:37]} 18. Nbd2 {[%emt 0:06:52]} Ng4 {[%emt 0:07:20]} 19. Re2 {[%emt 0:01:49]} Ne3 {[%emt 0:06:20]} 20. Nxe3 {[%emt 0:01:34]} dxe3 {[%emt 0:00:06]} 21. Nf3 {[%emt 0:02:50]} Qg4+ {[%emt 0:00:47]} 22. Bg2 {[%emt 0:00:29]} Nd4 {[%emt 0:01:12]} 23. Nxd4 {[%emt 0:02:22]} Bxg2 {[%emt 0:00:38]} 24. Bxe3 {[%emt 0:01:43]} Bf3+ {[%emt 0:01:11]} 25. Kf1 {[%emt 0:00:16]} exd4 {[%emt 0:00:20]} 26. Bg1 {[%emt 0:00:38]} Bxe2+ {[%emt 0:00:39]} 27. Qxe2 {[%emt 0:00:09]} Qxe2+ {[%emt 0:00:09]} 28. Kxe2 {[%emt 0:00:05]} Kd7 {[%emt 0:00:25]} 29. Kf3 {[%emt 0:00:25]} Rh3+ {[%emt 0:00:31]} 30. Kg2 {[%emt 0:00:14]} Rah8 {[%emt 0:00:10]} 31. Rf1 {[%emt 0:00:09]} Ke6 {[%emt 0:01:19]} 0-1

[Event "French-ch U16-U18 2024"]
[Site "Agen"]
[Date "2024.04.19"]
[Round "7.4"]
[White "Bellahcene, Jenna"]
[Black "Sarishvili, Mariam"]
[Result "1-0"]
[ECO "C02"]
[WhiteElo "1766"]
[BlackElo "1719"]
[Annotator "NA RC COMBH"]
[PlyCount "57"]
[EventDate "2024.04.14"]
[EventType "swiss"]
[EventCountry "FRA"]
[SourceTitle "playchess.com"]
[Source "ChessBase"]
[SourceQuality "1"]
[TimeControl "5400+30"]

1. e4 {[%emt 0:00:03]} e6 {[%emt 0:00:07]} 2. d4 {[%emt 0:00:15]} d5 {[%emt 0:00:02]} 3. e5 {[%emt 0:00:08]} c5 {[%emt 0:00:03]} 4. c3 {[%emt 0:00:06]} Nc6 {[%emt 0:00:03]} 5. g3 {[%emt 0:00:33]} Qb6 {[%emt 0:00:32]} 6. Ne2 {[%emt 0:00:12]} cxd4 {[%emt 0:01:56]} 7. cxd4 {[%emt 0:00:14]} Bb4+ {[%emt 0:02:02]} 8. Nbc3 {[%emt 0:00:56]} Bd7 {[%emt 0:05:32]} 9. Bh3 {[%emt 0:03:22]} Be7 {[%emt 0:08:21]} 10. O-O {[%emt 0:04:01]} h5 {[%emt 0:03:01]} 11. Rb1 {[%emt 0:09:49]} g5 {[%emt 0:05:03]} 12. Be3 {[%emt 0:10:36]} O-O-O {[%emt 0:20:08]} 13. Qd2 {[%emt 0:06:29]} g4 {[%emt 0:01:18]} 14. Bg2 {[%emt 0:00:07]} f5 {[%emt 0:10:23]} 15. Rfc1 {[%emt 0:02:08]} Rf8 {[%emt 0:03:02]} 16. a3 {[%emt 0:09:05]} Kb8 {[%emt 0:05:10]} 17. b4 {[%emt 0:04:13]} h4 {[%emt 0:02:38]} 18. b5 {[%emt 0:05:14]} Na5 {[%emt 0:00:47]} 19. Na4 {[%emt 0:17:00]} Qd8 {[%emt 0:00:06]} 20. Nc5 {[%emt 0:02:35]} Nc4 {[%emt 0:01:33]} 21. Rxc4 {[%emt 0:01:41]} dxc4 {[%emt 0:02:32]} 22. Nxb7 {[%emt 0:00:43]} Qc7 {[%emt 0:02:45]} 23. Na5 {[%emt 0:03:37]} Kc8 {[%emt 0:04:14]} 24. Nc6 {[%emt 0:01:13]} hxg3 {[%emt 0:02:58]} 25. hxg3 {[%emt 0:00:37]} Rf7 {[%emt 0:02:04]} 26. d5 {[%emt 0:04:46]} Bxc6 {[%emt 0:13:33]} 27. bxc6 {[%emt 0:00:59]} Qxe5 {[%emt 0:01:26]} 28. Bf4 {[%emt 0:00:25]} Qf6 {[%emt 0:00:05]} 29. Rb8# {[%emt 0:00:08]} 1-0

[Event "French-ch U16-U18 2024"]
[Site "Agen"]
[Date "2024.04.19"]
[Round "7.5"]
[White "Lavilledieu, Lily-Mei"]
[Black "Roy, Suvrojita"]
[Result "1-0"]
[ECO "A65"]
[WhiteElo "1783"]
[BlackElo "1665"]
[Annotator "NA RC COMBH"]
[PlyCount "157"]
[EventDate "2024.04.14"]
[EventType "swiss"]
[EventCountry "FRA"]
[SourceTitle "playchess.com"]
[Source "ChessBase"]
[SourceQuality "1"]
[TimeControl "5400+30"]

1. d4 {[%emt 0:00:03]} c5 {[%emt 0:00:06]} 2. d5 {[%emt 0:00:10]} Nf6 {[%emt 0:00:12]} 3. c4 {[%emt 0:00:07]} e6 {[%emt 0:00:29]} 4. Nc3 {[%emt 0:00:06]} exd5 {[%emt 0:00:15]} 5. cxd5 {[%emt 0:00:08]} d6 {[%emt 0:00:27]} 6. e4 {[%emt 0:00:08]} g6 {[%emt 0:00:46]} 7. Bd3 {[%emt 0:00:07]} Bg7 {[%emt 0:00:44]} 8. Nge2 {[%emt 0:00:34]} O-O {[%emt 0:01:00]} 9. O-O {[%emt 0:00:34]} Re8 {[%emt 0:01:11]} 10. f3 {[%emt 0:00:46]} Nbd7 {[%emt 0:01:19]} 11. Kh1 {[%emt 0:05:16]} Ne5 {[%emt 0:05:54]} 12. Bc2 {[%emt 0:00:17]} a6 {[%emt 0:07:16]} 13. a4 {[%emt 0:01:06]} b6 {[%emt 0:09:40]} 14. Rb1 {[%emt 0:05:09]} Bb7 {[%emt 0:07:06]} 15. g4 {[%emt 0:16:54]} Qd7 {[%emt 0:17:39]} 16. Ng3 {[%emt 0:15:27]} h6 {[%emt 0:11:53]} 17. Kg2 {[%emt 0:04:14]} b5 {[%emt 0:08:34]} 18. h3 {[%emt 0:02:32]} b4 {[%emt 0:04:59]} 19. Nce2 {[%emt 0:00:38]} Qc7 {[%emt 0:03:05]} 20. h4 {[%emt 0:07:44]} Nfd7 {[%emt 0:04:26]} 21. b3 {[%emt 0:05:32]} a5 {[%emt 0:00:40]} 22. h5 {[%emt 0:00:30]} g5 {[%emt 0:01:04]} 23. Nf5 {[%emt 0:00:44]} Nf6 {[%emt 0:02:48]} 24. Nxg7 {[%emt 0:00:50]} Kxg7 {[%emt 0:00:09]} 25. Ng3 {[%emt 0:00:09]} Bc8 {[%emt 0:01:36]} 26. Be3 {[%emt 0:02:19]} Bd7 {[%emt 0:01:04]} 27. Qd2 {[%emt 0:02:32]} Nh7 {[%emt 0:02:15]} 28. Bd1 {[%emt 0:01:04]} c4 {[%emt 0:01:04]} 29. bxc4 {[%emt 0:01:12]} Qxc4 {[%emt 0:01:07]} 30. Bd4 {[%emt 0:02:42]} Nf6 {[%emt 0:01:23]} 31. Be2 {[%emt 0:01:38]} Qc7 {[%emt 0:00:55]} 32. Rfc1 {[%emt 0:02:48]} Qb7 {[%emt 0:00:27]} 33. Bb5 {[%emt 0:00:59]} Bxb5 {[%emt 0:00:57]} 34. Nf5+ {[%emt 0:03:26]} Kh7 {[%emt 0:01:11]} 35. Nxd6 {[%emt 0:01:01]} Qd7 {[%emt 0:02:08]} 36. Nxe8 {[%emt 0:01:15]} Rxe8 {[%emt 0:00:33]} 37. axb5 {[%emt 0:03:59]} Nxf3 {[%emt 0:01:04]} 38. Qd3 {[%emt 0:07:55]} Qxg4+ {[%emt 0:00:53]} 39. Kf1 {[%emt 0:01:17]} Nh2+ {[%emt 0:00:58]} 40. Ke1 {[%emt 0:00:53]} Rxe4+ {[%emt 0:00:14]} 41. Kf2 {[%emt 0:01:06]} Qf4+ {[%emt 0:00:52]} 42. Kg2 {[%emt 0:00:16]} Qg4+ {[%emt 0:00:34]} 43. Kxh2 {[%emt 0:00:25]} Nxh5 {[%emt 0:00:25]} 44. Rd1 {[%emt 0:00:56]} Qh4+ {[%emt 0:00:29]} 45. Kg1 {[%emt 0:00:44]} Ng3 {[%emt 0:00:26]} 46. Kg2 {[%emt 0:02:01]} Kg8 {[%emt 0:00:29]} 47. b6 {[%emt 0:02:07]} Ne2 {[%emt 0:00:28]} 48. Bf2 {[%emt 0:01:27]} Nf4+ {[%emt 0:00:22]} 49. Kf3 {[%emt 0:00:39]} Qh5+ {[%emt 0:00:48]} 50. Kxe4 {[%emt 0:00:08]} Nxd3 {[%emt 0:00:08]} 51. Kxd3 {[%emt 0:00:34]} Qf3+ {[%emt 0:00:08]} 52. Be3 {[%emt 0:00:12]} Qxd5+ {[%emt 0:00:07]} 53. Ke2 {[%emt 0:00:50]} Qg2+ {[%emt 0:00:33]} 54. Ke1 {[%emt 0:00:14]} Qh1+ {[%emt 0:00:31]} 55. Ke2 {[%emt 0:00:23]} Qg2+ {[%emt 0:00:09]} 56. Kd3 {[%emt 0:00:06]} Qd5+ {[%emt 0:00:09]} 57. Bd4 {[%emt 0:00:21]} Qf5+ {[%emt 0:00:21]} 58. Kc4 {[%emt 0:00:25]} g4 {[%emt 0:00:17]} 59. Re1 {[%emt 0:01:17]} Kh7 {[%emt 0:00:22]} 60. b7 {[%emt 0:00:25]} Qf4 {[%emt 0:00:32]} 61. Kb5 {[%emt 0:00:45]} Qc7 {[%emt 0:00:47]} 62. Ka6 {[%emt 0:00:43]} Qc4+ {[%emt 0:00:46]} 63. Kxa5 {[%emt 0:00:37]} Qc7+ {[%emt 0:00:01]} 64. Ka6 {[%emt 0:00:21]} Qc4+ {[%emt 0:00:15]} 65. Ka7 {[%emt 0:00:18]} Qxd4+ {[%emt 0:00:03]} 66. Ka8 {[%emt 0:00:12]} Qd8+ {[%emt 0:01:00]} 67. b8=Q {[%emt 0:00:22]} Qa5+ {[%emt 0:00:35]} 68. Kb7 {[%emt 0:00:28]} Qb5+ {[%emt 0:00:08]} 69. Kc8 {[%emt 0:00:27]} Qxb8+ {[%emt 0:00:02]} 70. Kxb8 {[%emt 0:00:09]} Kg6 {[%emt 0:00:22]} 71. Rxb4 {[%emt 0:00:09]} h5 {[%emt 0:00:21]} 72. Re5 {[%emt 0:01:10]} f6 {[%emt 0:04:29]} 73. Rb6 {[%emt 0:00:45]} h4 {[%emt 0:00:00]} 74. Ree6 {[%emt 0:00:37]} Kg5 {[%emt 0:00:00]} 75. Rxf6 {[%emt 0:00:29]} h3 {[%emt 0:00:48]} 76. Rh6 {[%emt 0:00:26]} Kf4 {[%emt 0:00:22]} 77. Rbg6 {[%emt 0:00:44]} Kf5 {[%emt 0:00:38]} 78. Rg8 {[%emt 0:00:16]} Kf4 {[%emt 0:00:28]} 79. Rhg6 {[%emt 0:00:23]} 1-0